bitfinex/quotes_ETHUSD_20241104
["timestamp","ask_amount","ask_price","bid_price","bid_amount"]
[1730693971392,6.47694041,2476.3,2475.9,0.1995928]
[1730693971600,4.03847,2476.2,2475.9,0.1995928]
[1730693972102,6.47694041,2476.3,2475.9,0.1995928]
[1730693972103,0.7912,2476.3,2475.9,0.1995928]
[1730693972304,4.82949,2476.3,2475.9,0.76701103]
[1730693972809,8.86788,2476.3,2475.9,0.76701103]
[1730693973183,4.82949,2476.3,2475.9,0.76701103]
[1730693973383,8.07667,2476.3,2475.9,0.76701103]
[1730693973894,4.03829,2476.3,2475.9,0.76701103]
[1730693974210,8.07668,2476.3,2475.9,0.76701103]
[1730693974584,4.03829,2476.3,2475.9,0.76701103]
[1730693975201,8.07668,2476.3,2475.9,0.76701103]
[1730693977017,4.03829,2476.3,2475.9,0.76701103]
[1730693980321,4.03845,2476.2,2475.9,0.76701103]
[1730693981331,4.03829,2476.3,2475.9,0.76701103]
[1730693981825,8.07671,2476.3,2475.9,0.76701103]
[1730693982685,4.03829,2476.3,2475.9,0.76701103]
[1730693983081,0.63232713,2476.5,2476.1,0.7892]
[1730693983321,4.03772,2476.7,2476.2,4.58832]
[1730693983527,4.03772,2476.7,2476.3,0.7892]
[1730693983934,4.03772,2476.7,2476.4,0.19883019]
[1730693984432,5.68485041,2476.9,2476.4,0.19883019]
[1730693984634,4.03739,2476.9,2476.4,5.27908291]
[1730693984788,4.03738,2476.9,2476.5,0.7892]
[1730693984994,4.03738,2476.9,2476.6,0.19859393]
[1730693985485,8.07484,2476.9,2476.6,0.19859393]
[1730693985690,4.03738,2476.9,2476.6,0.19859393]
[1730693987618,4.03747,2476.8,2476.6,0.19859393]
[1730693988333,6.51301041,2476.9,2476.6,0.19859393]
[1730693989442,4.03748,2476.8,2476.6,0.19859393]
[1730693990297,4.03763,2476.7,2476.6,0.19859393]
[1730693990541,5.68509041,2476.7,2476.6,0.19859393]
[1730693990706,4.03821,2476.4,2476.1,0.7892]
[1730693990906,8.07645,2476.4,2476.1,0.7892]
[1730693991243,4.03821,2476.4,2476.1,0.7892]
[1730693992398,4.03821,2476.4,2475.9,4.03883]
[1730693992399,8.07648,2476.4,2475.9,4.03883]
[1730693992600,8.07648,2476.4,2475.8,0.55]
[1730693992601,1.64746041,2476.3,2475.8,0.55]
[1730693992824,4.03852,2476.2,2475.8,5.048003]
[1730693993024,4.03823,2476.4,2475.9,4.03885]
[1730693993443,5.68545041,2476.5,2476.0,4.58864]
[1730693994614,5.68545041,2476.5,2476.0,0.55]
[1730693995543,5.68545041,2476.5,2476.1,0.7892]
[1730693996700,4.03811,2476.4,2475.9,0.7892]
[1730693996908,4.03811,2476.4,2475.9,1.7218273]
[1730693997297,4.03829,2476.3,2475.9,1.7218273]
[1730693997602,6.51385041,2476.3,2475.9,0.7892]
[1730693998042,4.86639,2476.3,2475.9,0.7892]
[1730693998740,4.03829,2476.3,2475.9,0.7892]
[1730693998916,4.03829,2476.3,2476.0,0.19917672]
[1730694000353,4.03812,2476.4,2476.0,0.19917672]
[1730694003059,4.03833,2476.3,2476.0,0.19917672]
[1730694003915,4.03851,2476.2,2476.0,0.19917672]
[1730694004646,6.51416041,2476.1,2476.0,0.19917672]
[1730694004850,6.51416041,2476.1,2475.6,4.82848]
[1730694004851,6.51416041,2476.1,2475.6,0.7892]
[1730694005061,4.03879,2476.0,2475.7,0.19959281]
[1730694007568,2.47556041,2476.1,2475.7,0.19959281]
[1730694007861,4.03878,2476.0,2475.7,0.19959281]
[1730694008868,5.09407004,2476.0,2475.7,0.19959281]
[1730694009021,5.68655041,2475.8,2475.5,0.55]
[1730694009225,5.68655041,2475.8,2475.6,0.19971102]
[1730694009551,5.68655041,2475.8,2475.4,0.8103]
[1730694009730,1.64746041,2475.6,2475.3,7.49]
[1730694009932,1.64746041,2475.6,2475.2,0.8103]
[1730694009933,6.50415041,2475.6,2475.2,0.8103]
[1730694010342,10.54366041,2475.6,2475.2,0.8103]
[1730694010540,10.54371041,2475.6,2475.2,0.8103]
[1730694011978,10.54371041,2475.6,2474.8,9.14621159]
[1730694011979,0.8172,2475.2,2474.8,9.14621159]
[1730694012266,0.8172,2475.2,2474.6,1.65621159]
[1730694012267,1.64746041,2475.0,2474.6,1.65621159]
[1730694012479,1.64746041,2475.0,2474.6,6.36429465]
[1730694012623,1.64746041,2475.0,2474.7,0.30234799]
[1730694012818,4.04031,2475.1,2474.7,0.30236069]
[1730694013059,4.04031,2475.1,2474.6,5.15368069]
[1730694013358,4.04031,2475.1,2474.6,4.85132]
[1730694013520,6.50484041,2475.2,2474.6,4.85132]
[1730694013721,6.50484041,2475.2,2474.6,5.8635692]
[1730694014049,6.50484041,2475.2,2474.7,4.24164535]
[1730694014553,5.68764041,2475.2,2474.7,4.24164535]
[1730694015068,5.68764041,2475.2,2474.7,0.20077535]
[1730694015422,4.04018,2475.2,2474.7,0.20077535]
[1730694016119,4.04024,2475.1,2474.7,0.20077535]
[1730694016527,4.04018,2475.2,2474.7,0.20077535]
[1730694016736,4.04016,2475.2,2474.7,0.20077535]
[1730694016943,4.04016,2475.2,2474.7,1.25350057]
[1730694017229,4.04026,2475.1,2474.7,1.25350057]
[1730694017999,4.04016,2475.2,2474.7,1.25350057]
[1730694018480,4.85672,2475.6,2475.0,4.04027]
[1730694018770,4.03961,2475.5,2475.1,0.8103]
[1730694018971,4.03961,2475.5,2475.1,1.01079148]
[1730694019470,4.03975,2475.4,2475.1,1.01079148]
[1730694022459,4.03959,2475.5,2475.1,1.01079148]
[1730694022669,8.89626,2475.6,2475.1,6.06998245]
[1730694022878,4.03961,2475.5,2475.1,2.02976245]
[1730694024581,4.03975,2475.4,2475.1,1.01079148]
[1730694031741,4.03959,2475.5,2475.1,1.01079148]
[1730694031947,4.03954,2475.6,2475.1,5.05102148]
[1730694032147,7.86487826,2475.8,2475.1,5.05102148]
[1730694032148,4.03922,2475.8,2475.4,0.8213]
[1730694032380,4.03927,2475.7,2475.4,0.8213]
[1730694032584,4.03927,2475.7,2475.5,0.25089181]
[1730694033487,4.03942,2475.6,2475.5,0.25089181]
[1730694033844,4.03942,2475.6,2475.1,0.8213]
[1730694034096,4.03969,2475.5,2475.2,0.25123574]
[1730694034592,4.03942,2475.6,2475.2,0.25123574]
[1730694034896,4.03926,2475.7,2475.2,0.25123574]
[1730694035054,4.0395,2475.6,2475.2,0.25123574]
[1730694035250,3.82565826,2475.8,2475.2,0.25123574]
[1730694035456,4.85824,2475.5,2475.2,0.25123574]
[1730694035682,4.50379583,2475.7,2475.2,0.25123574]
[1730694035869,4.03945,2475.6,2475.2,0.25123574]
[1730694037128,4.03928,2475.7,2475.2,4.29129574]
[1730694037416,5.68662451,2475.7,2475.2,4.29129574]
[1730694037818,9.72597451,2475.7,2475.2,4.29129574]
[1730694038029,9.72602451,2475.7,2475.2,4.29129574]
[1730694038693,9.72602451,2475.7,2475.2,0.25123574]
[1730694038883,9.72597451,2475.7,2475.2,0.25123574]
[1730694039110,5.68662451,2475.7,2475.2,4.29129574]
[1730694039310,5.68662451,2475.7,2475.2,5.20658131]
[1730694039817,9.72602451,2475.7,2475.2,1.16652131]
[1730694040121,9.72603451,2475.7,2475.2,1.16652131]
[1730694040550,5.68662451,2475.7,2475.2,1.16652131]
[1730694041022,5.68662451,2475.7,2475.2,5.20658131]
[1730694041721,4.03944,2475.6,2475.2,1.16652131]
[1730694042783,5.68661451,2475.7,2475.2,5.20658131]
[1730694042983,5.68661451,2475.7,2475.4,0.7719]
[1730694042984,4.03927,2475.7,2475.4,0.7719]
[1730694043423,4.03927,2475.7,2475.5,0.25080254]
[1730694043798,8.07864,2475.7,2475.5,0.25080254]
[1730694043996,4.03927,2475.7,2475.5,0.25080254]
[1730694044835,8.07865,2475.7,2475.5,0.25080254]
[1730694045033,4.03927,2475.7,2475.5,0.25080254]
[1730694047398,5.68640451,2475.9,2475.5,0.25080254]
[1730694047611,0.8313,2476.1,2475.6,0.7719]
[1730694047815,4.03901,2475.9,2475.6,0.7719]
[1730694048076,4.03901,2475.9,2475.7,0.25055585]
[1730694048199,8.07806,2475.9,2475.7,0.25055585]
[1730694048625,4.03909,2475.8,2475.7,0.25055585]
[1730694048840,4.03901,2475.9,2475.7,0.25055585]
[1730694049413,8.07808,2475.9,2475.7,0.25055585]
[1730694049912,4.03901,2475.9,2475.7,0.25055585]
[1730694050614,8.07806,2475.9,2475.7,0.25055585]
[1730694051329,4.03901,2475.9,2475.7,0.25055585]
[1730694052651,4.03901,2475.9,2475.7,0.85374839]
[1730694053631,5.68605451,2476.1,2475.7,0.85374839]
[1730694053931,4.03877,2476.0,2475.7,0.85374839]
[1730694055326,4.03877,2476.0,2475.7,0.25055585]
[1730694055533,4.03894,2475.9,2475.7,0.25055585]
[1730694055934,5.68605451,2476.1,2475.7,0.25055585]
[1730694056147,4.03877,2476.0,2475.7,0.25055585]
[1730694057941,4.03871,2476.1,2475.7,0.25055585]
[1730694058340,5.68605451,2476.1,2475.7,0.25055585]
[1730694059236,4.03878,2476.0,2475.7,0.25055585]
[1730694060561,5.68605451,2476.1,2475.7,0.25055585]
[1730694060757,9.72475451,2476.1,2475.7,0.25055585]
[1730694060919,5.68604451,2476.1,2475.7,0.25055585]
[1730694061115,9.72477451,2476.1,2475.7,0.25055585]
[1730694061875,5.68604451,2476.1,2475.7,0.25055585]
[1730694062367,9.72476451,2476.1,2475.7,0.25055585]
[1730694063042,5.68604451,2476.1,2475.7,0.25055585]
[1730694063240,4.67093109,2476.2,2475.8,0.55]
[1730694063545,4.67093109,2476.2,2475.9,1.02145689]
[1730694063546,4.03846,2476.2,2475.9,1.02145689]
[1730694064225,2.47864451,2476.3,2475.9,1.02145689]
[1730694064430,5.68564451,2476.3,2475.9,1.02145689]
[1730694064665,5.68564451,2476.3,2475.9,5.06037689]
[1730694064830,4.0383,2476.3,2475.9,6.08100854]
[1730694065252,0.7919,2476.5,2475.9,6.08092854]
[1730694065458,2.27965872,2476.7,2476.1,0.7712]
[1730694065459,3.07155872,2476.7,2476.1,0.7712]
[1730694065641,4.03814,2476.4,2476.1,0.7712]
[1730694065852,4.03814,2476.4,2476.2,0.24989623]
[1730694066944,2.43924451,2476.7,2476.2,0.24989623]
[1730694066945,4.03828,2476.3,2476.2,0.24989623]
[1730694068255,5.68562451,2476.3,2476.2,0.24989623]
[1730694068575,5.68562451,2476.3,2475.8,0.55]
[1730694068736,4.03868,2476.1,2475.8,0.55]
[1730694068937,5.68602451,2476.1,2475.7,0.7712]
[1730694069150,4.03879,2476.0,2475.7,0.7712]
[1730694069354,5.68596451,2476.1,2475.7,0.7712]
[1730694070174,8.07735,2476.1,2475.7,0.7712]
[1730694070619,4.0388,2476.0,2475.7,0.7712]
[1730694070754,9.72466451,2476.1,2475.7,0.7712]
[1730694070941,5.68596451,2476.1,2475.7,4.81044]
[1730694071582,4.03846,2476.2,2475.8,4.58909]
[1730694071748,4.03848,2476.2,2475.8,0.55]
[1730694071954,4.03848,2476.2,2475.9,0.758]
[1730694072555,5.68563451,2476.3,2475.9,0.758]
[1730694073146,5.68537451,2476.5,2476.0,4.03865]
[1730694073483,4.03798,2476.5,2476.0,0.758]
[1730694073692,4.03798,2476.5,2476.1,4.0386]
[1730694073840,5.68501451,2476.7,2476.2,4.79628]
[1730694074273,4.03767,2476.7,2476.4,0.758]
[1730694074437,4.03741,2476.9,2476.4,0.758]
[1730694074642,4.03741,2476.9,2476.5,0.24940028]
[1730694074841,4.03716,2477.0,2476.6,0.758]
[1730694075081,4.03707,2477.1,2476.6,0.758]
[1730694075251,4.03717,2477.0,2476.7,0.24915994]
[1730694075453,4.03707,2477.1,2476.7,0.24915994]
[1730694075654,4.03707,2477.1,2476.7,4.28677994]
[1730694075862,4.03682,2477.2,2476.8,0.758]
[1730694076179,0.97209245,2477.2,2476.9,0.24886121]
[1730694076379,5.00900245,2477.2,2476.9,0.24886121]
[1730694076583,4.03704,2477.1,2476.9,0.24886121]
[1730694077042,5.00900245,2477.2,2476.9,0.24886121]
[1730694077771,5.00891245,2477.2,2476.9,0.24886121]
[1730694078082,4.03655,2477.4,2476.9,4.28615121]
[1730694078244,4.66848126,2477.5,2477.0,0.758]
[1730694078444,4.03633,2477.5,2477.1,0.758]
[1730694078644,4.03657,2477.4,2477.1,0.758]
[1730694078858,4.03657,2477.4,2477.2,0.24844702]
[1730694079147,0.43186304,2477.4,2477.3,0.758]
[1730694079343,4.03643,2477.5,2477.3,1.00631001]
[1730694079971,4.03648,2477.4,2477.3,1.00631001]
[1730694080157,8.07285,2477.5,2477.3,1.00631001]
[1730694080344,8.07285,2477.5,2477.3,0.758]
[1730694080544,4.90690951,2477.5,2477.4,0.24806075]
[1730694080754,4.90690951,2477.5,2477.3,0.758]
[1730694080954,8.70425513,2477.7,2477.4,0.24806075]
[1730694081299,4.03618,2477.6,2477.4,0.24806075]
[1730694081793,4.03584,2477.8,2477.5,0.758]
[1730694081997,4.03603,2477.7,2477.5,1.00594066]
[1730694083173,4.53581,2477.9,2477.5,1.00594066]
[1730694083374,4.03584,2477.8,2477.5,1.00594066]
[1730694083954,8.07183,2477.8,2477.5,1.00594066]
[1730694084159,4.03584,2477.8,2477.5,1.00594066]
[1730694084888,4.0361,2477.7,2477.5,1.00594066]
[1730694085201,4.03616,2477.6,2477.5,0.24794066]
[1730694085491,4.03648,2477.4,2477.3,0.8291]
[1730694086097,0.7662,2477.4,2477.0,7.49]
[1730694086302,4.03702,2477.1,2476.8,0.8291]
[1730694086468,4.03702,2477.1,2476.6,4.03771]
[1730694086469,4.440852,2477.0,2476.6,0.8291]
[1730694086656,4.03702,2477.1,2476.6,0.8291]
[1730694087067,4.03702,2477.1,2476.6,4.86679]
[1730694087266,8.07413,2477.1,2476.6,4.86679]
[1730694087887,4.03684,2477.2,2476.8,0.55]
[1730694088091,4.03698,2477.1,2476.7,0.55]
[1730694088405,8.07407,2477.1,2476.6,4.86675]
[1730694088906,8.07407,2477.1,2476.7,0.24891085]
[1730694089320,4.03698,2477.1,2476.7,0.24891085]
[1730694089490,4.03732,2476.9,2476.7,0.24891085]
[1730694090023,4.03732,2476.9,2476.7,0.14891085]
[1730694090205,4.03746,2476.8,2476.7,0.24878456]
[1730694090372,4.03746,2476.8,2476.4,0.8291]
[1730694090576,4.03746,2476.8,2476.7,0.24557138]
[1730694090814,4.921558,2476.8,2476.4,0.8291]
[1730694091005,4.03746,2476.8,2476.7,0.24557753]
[1730694091312,4.03746,2476.8,2476.4,0.8291]
[1730694091816,4.03746,2476.8,2476.5,0.24581787]
[1730694093485,4.0377,2476.7,2476.5,0.24581787]
[1730694094727,4.03746,2476.8,2476.5,0.24581787]
[1730694096089,8.07502,2476.8,2476.5,0.24581787]
[1730694096397,4.03765,2476.7,2476.5,0.24581787]
[1730694097134,4.844962,2476.8,2476.5,0.24581787]
[1730694099804,0.807502,2476.8,2476.5,0.24581787]
[1730694100003,4.03739,2476.9,2476.5,0.24581787]
[1730694100201,4.03748,2476.8,2476.5,0.24581787]
[1730694106348,4.03763,2476.7,2476.5,0.24581787]
[1730694106547,6.50699517,2476.7,2476.5,0.24581787]
[1730694106839,6.50699517,2476.7,2476.3,4.03817]
[1730694106999,4.86123,2476.7,2476.6,0.24578221]
[1730694107201,5.91567752,2476.7,2476.3,4.03817]
[1730694107403,5.91567752,2476.7,2476.6,0.24579144]
[1730694107901,5.91567752,2476.7,2476.3,4.03817]
[1730694108103,4.86123,2476.7,2476.6,0.24579144]
[1730694108723,4.86123,2476.7,2476.3,4.03817]
[1730694108928,4.03748,2476.8,2476.6,0.24579144]
[1730694109214,4.03748,2476.8,2476.3,8.07636]
[1730694109215,4.03748,2476.8,2476.7,0.24568511]
[1730694109402,4.03748,2476.8,2476.4,4.03805]
[1730694109603,4.03748,2476.8,2476.7,0.2456805]
[1730694109816,5.09188952,2476.8,2476.4,4.03805]
[1730694110014,5.09188952,2476.8,2476.7,0.2456805]
[1730694110224,5.09188952,2476.8,2476.4,4.03805]
[1730694110550,4.03748,2476.8,2476.7,0.2456805]
[1730694110703,4.03748,2476.8,2476.4,4.03805]
[1730694110903,4.03748,2476.8,2476.7,0.2456805]
[1730694111115,4.03748,2476.8,2476.4,4.03805]
[1730694111737,4.03748,2476.8,2476.5,0.24591469]
[1730694112613,4.03765,2476.7,2476.5,0.24591469]
[1730694112848,4.03765,2476.7,2476.3,4.03826]
[1730694113148,4.03765,2476.7,2476.6,0.24579144]
[1730694113358,4.03765,2476.7,2476.3,4.03826]
[1730694113851,4.03765,2476.7,2476.4,0.24603794]
[1730694114007,9.12943952,2476.8,2476.4,0.24603794]
[1730694115410,5.09188952,2476.8,2476.4,0.24603794]
[1730694115616,4.03748,2476.8,2476.4,0.24603794]
[1730694116361,4.03771,2476.7,2476.4,0.24603794]
[1730694116557,4.0378,2476.6,2476.4,0.24603794]
[1730694116855,4.0378,2476.6,2476.5,0.24593624]
[1730694117050,4.0378,2476.6,2476.2,4.82332]
[1730694117225,4.0378,2476.6,2476.5,0.24593624]
[1730694117416,4.03748,2476.8,2476.2,4.82332]
[1730694117622,4.03775,2476.7,2476.5,0.24594085]
[1730694117814,4.03775,2476.7,2476.2,4.82334]
[1730694118043,4.03775,2476.7,2476.6,0.24582068]
[1730694118218,4.03775,2476.7,2476.2,4.82334]
[1730694118431,4.03775,2476.7,2476.6,0.24582068]
[1730694118763,4.03775,2476.7,2476.2,4.82334]
[1730694118948,4.03775,2476.7,2476.6,0.24582068]
[1730694119129,4.03775,2476.7,2476.2,4.82334]
[1730694119670,4.03775,2476.7,2476.3,0.24618123]
[1730694120774,4.03746,2476.8,2476.3,0.24618123]
[1730694121072,4.0378,2476.6,2476.3,0.24618123]
[1730694122528,1.64576517,2476.7,2476.3,0.24618123]
[1730694122731,1.64576517,2476.7,2476.3,4.28446123]
[1730694122732,4.03765,2476.7,2476.3,4.28446123]
[1730694123172,4.03765,2476.7,2476.3,0.24618123]
[1730694123340,4.0378,2476.6,2476.3,0.24618123]
[1730694123673,4.03765,2476.7,2476.3,0.24618123]
[1730694123969,6.50675517,2476.9,2476.3,0.24618123]
[1730694124173,4.03748,2476.8,2476.3,4.28438123]
[1730694124877,4.03764,2476.7,2476.3,0.24618123]
[1730694125386,8.07535,2476.7,2476.3,0.24618123]
[1730694125541,4.03781,2476.6,2476.3,0.24618123]
[1730694125744,4.03764,2476.7,2476.3,0.24618123]
[1730694126741,8.07536,2476.7,2476.3,0.24618123]
[1730694127550,4.03764,2476.7,2476.3,0.24618123]
[1730694127946,6.50677517,2476.9,2476.3,4.28443123]
[1730694128186,4.86101,2476.9,2476.5,0.7758]
[1730694128389,4.03746,2476.8,2476.6,0.24583296]
[1730694129343,6.50668517,2476.9,2476.6,0.24583296]
[1730694129545,10.54409517,2476.9,2476.6,0.24583296]
[1730694129766,4.03749,2476.8,2476.6,0.24583296]
[1730694130574,6.50668517,2476.9,2476.6,0.24583296]
[1730694131088,4.03747,2476.8,2476.6,0.24583296]
[1730694132873,4.03763,2476.7,2476.6,0.24583296]
[1730694134186,6.73784169,2476.7,2476.6,0.24583296]
[1730694134353,4.03788,2476.6,2476.3,0.7758]
[1730694134556,4.03788,2476.6,2476.4,0.30295087]
[1730694134894,4.03786,2476.6,2476.3,0.7758]
[1730694135062,4.03786,2476.6,2476.4,0.30295657]
[1730694135388,4.03786,2476.6,2476.3,0.7758]
[1730694135600,4.03786,2476.6,2476.4,0.30300852]
[1730694135895,4.03786,2476.6,2476.3,0.7758]
[1730694136094,4.03786,2476.6,2476.4,0.3030089]
[1730694136253,4.03786,2476.6,2476.3,0.7758]
[1730694136603,4.03786,2476.6,2476.4,0.3029991]
[1730694136759,8.0758,2476.6,2476.3,0.7758]
[1730694137400,4.03786,2476.6,2476.4,0.30300133]
[1730694137794,4.03786,2476.6,2476.3,0.7758]
[1730694137995,4.03786,2476.6,2476.4,0.30298372]
[1730694138165,4.03786,2476.6,2476.3,0.7758]
[1730694138358,4.03786,2476.6,2476.4,0.30296778]
[1730694138576,4.03786,2476.6,2476.3,0.7758]
[1730694138776,4.03786,2476.6,2476.4,0.30296743]
[1730694138984,4.03786,2476.6,2476.3,0.7758]
[1730694139184,4.03786,2476.6,2476.4,0.30295687]
[1730694139364,4.03786,2476.6,2476.3,0.7758]
[1730694139566,4.03786,2476.6,2476.4,0.30295839]
[1730694139884,4.03786,2476.6,2476.3,0.7758]
[1730694140087,4.03786,2476.6,2476.4,0.30295824]
[1730694140273,4.03786,2476.6,2476.3,0.7758]
[1730694140460,4.03786,2476.6,2476.4,0.30294624]
[1730694140662,4.03786,2476.6,2476.3,0.7758]
[1730694140896,4.03808,2476.5,2476.4,0.30294622]
[1730694141204,4.03808,2476.5,2476.3,0.7758]
[1730694141359,4.03808,2476.5,2476.4,0.30293932]
[1730694142003,4.03808,2476.5,2476.3,0.7758]
[1730694142163,4.03808,2476.5,2476.4,0.30293888]
[1730694142363,4.03808,2476.5,2476.3,0.7758]
[1730694142575,4.03808,2476.5,2476.2,0.42193936]
[1730694142774,4.03808,2476.5,2476.3,1.00428435]
[1730694142979,4.03808,2476.5,2476.2,0.42193936]
[1730694143185,4.03808,2476.5,2476.3,1.00428469]
[1730694143386,4.03808,2476.5,2476.2,0.42193936]
[1730694143574,4.03808,2476.5,2476.3,1.0042603]
[1730694143776,4.03808,2476.5,2476.2,0.42193936]
[1730694143974,4.03811,2476.4,2476.3,1.00425941]
[1730694144174,5.68387517,2476.4,2476.2,0.42193936]
[1730694144379,4.03875,2476.1,2475.7,1.93059067]
[1730694144606,4.03875,2476.1,2475.8,0.70127129]
[1730694144607,4.03893,2475.9,2475.8,0.70127129]
[1730694144760,4.03893,2475.9,2475.7,1.21332095]
[1730694144964,4.03893,2475.9,2475.7,1.05197224]
[1730694145206,4.03893,2475.9,2475.6,0.16128288]
[1730694145388,4.03893,2475.9,2475.7,0.20294314]
[1730694145604,6.51331517,2476.2,2475.7,4.03925]
[1730694145852,5.68421517,2476.2,2475.8,0.8265]
[1730694146906,6.51299517,2476.4,2475.8,0.8265]
[1730694147104,6.51299517,2476.4,2475.9,4.03882]
[1730694147482,10.55120517,2476.4,2475.9,4.03882]
[1730694148179,4.03829,2476.3,2475.9,4.03882]
[1730694148814,6.51299517,2476.4,2476.0,0.23817752]
[1730694148980,10.55126517,2476.4,2475.8,4.86557]
[1730694149181,10.55126517,2476.4,2475.9,0.23829775]
[1730694149577,4.03831,2476.3,2475.9,0.23829775]
[1730694149804,4.03843,2476.3,2475.9,0.23829775]
[1730694150914,6.51299517,2476.4,2475.9,0.23829775]
[1730694151090,4.03831,2476.3,2475.9,0.23829775]
[1730694155434,2.47486517,2476.4,2475.9,0.23829775]
[1730694155737,4.0383,2476.3,2475.9,0.23829775]
[1730694157736,4.03844,2476.2,2475.9,0.23829775]
[1730694160251,1.64576517,2476.0,2475.9,0.23829775]
[1730694160960,1.64576517,2476.0,2475.7,0.30251602]
[1730694161159,1.64576517,2476.0,2475.9,0.23833385]
[1730694161656,4.03872,2476.1,2475.6,1.84459765]
[1730694161835,4.03872,2476.1,2475.7,0.23857434]
[1730694162523,4.03872,2476.1,2475.7,0.54107499]
[1730694162923,4.03872,2476.1,2475.7,0.23857434]
[1730694164376,4.69667907,2476.1,2475.7,0.23857434]
[1730694164543,4.78987,2476.0,2475.7,0.23857434]
[1730694166431,11.52902869,2476.2,2475.7,0.23857434]
[1730694166838,4.03863,2476.1,2475.7,0.23857434]
[1730694167249,7.49044869,2476.2,2475.7,0.23857434]
[1730694167453,1.64576517,2476.4,2475.9,0.7941]
[1730694167658,5.68395517,2476.4,2476.0,0.23830694]
[1730694168722,9.72219517,2476.4,2476.0,0.23830694]
[1730694169017,10.76952469,2476.4,2476.0,0.23830694]
[1730694172531,4.0383,2476.3,2476.0,0.23830694]
[1730694178140,4.7897,2476.1,2476.0,0.23830694]
[1730694178497,4.7897,2476.1,2475.6,4.91428023]
[1730694178829,4.7897,2476.1,2475.7,0.54130844]
[1730694179018,4.7897,2476.1,2475.7,0.2386496]
[1730694180234,4.7897,2476.1,2475.7,4.2778996]
[1730694180446,5.68402517,2476.4,2475.9,4.03882]
[1730694180803,4.03828,2476.3,2475.9,4.03882]
[1730694181144,4.03828,2476.3,2476.0,0.23831298]
[1730694183905,4.03828,2476.3,2475.8,9.42206]
[1730694184107,4.03828,2476.3,2476.1,0.23818373]
[1730694184349,5.08559252,2476.3,2475.8,9.42206]
[1730694184643,4.03828,2476.3,2475.9,5.0427449]
[1730694184810,5.68436517,2476.1,2476.0,0.30279795]
[1730694185144,5.68436517,2476.1,2475.7,0.7941]
[1730694185659,1.64576517,2476.1,2475.7,0.7941]
[1730694185840,4.03883,2476.0,2475.7,0.7941]
[1730694187363,1.64576517,2476.1,2475.7,0.7941]
[1730694187562,4.03853,2476.2,2475.7,4.83326]
[1730694187752,1.64576517,2476.3,2475.7,1.87922416]
[1730694187927,5.68409517,2476.3,2475.7,5.91847416]
[1730694188127,5.68409517,2476.3,2475.8,0.30287434]
[1730694188128,4.03845,2476.2,2475.8,0.30287434]
[1730694188330,4.03845,2476.2,2475.7,5.91847416]
[1730694188554,4.03845,2476.2,2475.8,0.30287274]
[1730694188724,4.03861,2476.1,2475.7,5.91847416]
[1730694188927,4.03861,2476.1,2475.8,0.30287026]
[1730694189223,4.03861,2476.1,2475.7,1.87922416]
[1730694189423,8.0773,2476.1,2475.8,0.30292316]
[1730694189659,8.0773,2476.1,2475.7,1.87922416]
[1730694189660,4.03861,2476.1,2475.7,1.87922416]
[1730694189824,8.0773,2476.1,2475.7,1.87922416]
[1730694190561,8.0773,2476.1,2475.7,0.7941]
[1730694190731,5.68481517,2475.9,2475.5,0.84591159]
[1730694190967,5.68481517,2475.9,2475.4,2.45922569]
[1730694190968,4.03916,2475.8,2475.6,1.00433852]
[1730694191122,4.03916,2475.8,2475.5,1.21355109]
[1730694191466,4.03916,2475.8,2475.6,0.30292528]
[1730694191629,4.03916,2475.8,2475.5,0.16138722]
[1730694191828,4.03916,2475.8,2475.6,0.30292687]
[1730694192064,4.03916,2475.8,2475.5,0.16138722]
[1730694192359,5.68502517,2475.7,2475.6,0.30289349]
[1730694192566,4.03945,2475.6,2475.4,0.92977996]
[1730694192741,4.03945,2475.6,2475.5,0.30290505]
[1730694192938,4.03945,2475.6,2475.3,1.21339432]
[1730694193263,4.03945,2475.6,2475.2,1.61431159]
[1730694193264,4.03945,2475.6,2475.2,0.7684]
[1730694193484,4.03945,2475.6,2475.3,1.00401751]
[1730694193768,4.03945,2475.6,2475.2,0.92974605]
[1730694193935,4.03945,2475.6,2475.4,0.23906611]
[1730694194340,6.47312517,2475.7,2475.4,0.23906611]
[1730694194658,10.51249517,2475.7,2475.5,0.23894583]
[1730694194868,10.51249517,2475.7,2475.3,0.30277465]
[1730694194869,4.03942,2475.6,2475.3,0.30277465]
[1730694195058,4.03942,2475.6,2475.2,2.24190381]
[1730694195235,4.03942,2475.6,2475.3,0.30277952]
[1730694195442,4.03942,2475.6,2475.2,2.24190381]
[1730694195758,10.51249517,2475.7,2475.3,0.30272761]
[1730694196062,6.47312517,2475.7,2475.2,2.24190381]
[1730694196263,4.03943,2475.6,2475.3,0.30272256]
[1730694196465,4.03943,2475.6,2475.2,2.24154817]
[1730694196777,6.47312517,2475.7,2475.2,1.19034459]
[1730694196975,6.47312517,2475.7,2475.3,0.30267799]
[1730694197173,10.51248517,2475.7,2475.3,0.30267799]
[1730694197374,4.03943,2475.6,2475.3,0.30267799]
[1730694197968,4.03943,2475.6,2475.2,1.19034459]
[1730694198991,8.07896,2475.6,2475.2,1.19034459]
[1730694199143,8.07896,2475.6,2475.2,1.49295678]
[1730694199344,4.03943,2475.6,2475.2,1.49295678]
[1730694200053,8.07893,2475.6,2475.2,1.49295678]
[1730694200479,4.03943,2475.6,2475.2,1.49295678]
[1730694201476,1.64576517,2475.5,2475.2,1.49295678]
[1730694201678,5.68537517,2475.5,2475.1,0.55]
[1730694201842,5.68537517,2475.5,2475.1,0.85254439]
[1730694202041,5.68537517,2475.5,2475.1,0.55]
[1730694204498,1.64576517,2475.5,2475.1,0.55]
[1730694204991,4.83643,2475.4,2475.0,0.7684]
[1730694207257,0.7966,2475.4,2475.0,0.7684]
[1730694207670,5.68534517,2475.5,2475.0,0.7684]
[1730694208697,4.03975,2475.4,2475.0,0.7684]
[1730694208904,4.03975,2475.4,2475.1,0.23957308]
[1730694212807,1.64576517,2475.5,2475.1,0.23957308]
[1730694213373,5.68542517,2475.5,2475.1,0.23957308]
[1730694214010,4.03978,2475.4,2475.1,0.23957308]
[1730694217020,5.68577517,2475.3,2475.1,0.23957308]
[1730694217410,1.64576517,2475.3,2475.1,0.23957308]
[1730694217600,1.64576517,2475.3,2474.9,0.55]